fUST/lending_fUST_20250208
["ID","MTS","AMOUNT","RATE_DAILY","PERIOD"]
[352209453,1738998660791,-500.0,0.00011506,2]
[352209454,1738998660802,-500.0,0.00011506,2]
[352209455,1738998660811,-500.0,0.00011506,2]
[352209456,1738998660821,-500.0,0.00011506,2]
[352209457,1738998660831,-500.0,0.00011506,2]
[352209458,1738998660840,-500.0,0.00011506,2]
[352209459,1738998660851,-432.08392,0.00011506,2]
[352209460,1738998660864,-432.08392,0.00011506,2]
[352209461,1738998660873,-500.0,0.00011506,2]
[352209462,1738998660883,-1060.7,0.00011506,2]
[352209463,1738998660892,-500.0,0.00011506,2]
[352209464,1738998660901,-500.0,0.00011506,2]
[352209465,1738998660910,-500.0,0.00011506,2]
[352209466,1738998660920,-500.0,0.00011506,2]
[352209467,1738998660930,-500.0,0.00011506,2]
[352209468,1738998660939,-504.9480489,0.00011506,2]
[352209469,1738998660949,-500.0,0.00011506,2]
[352209470,1738998660958,-500.0,0.00011506,2]
[352209471,1738998660968,-500.0,0.00011506,2]
[352209472,1738998660978,-500.0,0.00011506,2]
[352209473,1738998660987,-1453.12,0.00011506,2]
[352209474,1738998660997,-500.0,0.00011506,2]
[352209475,1738998661007,-500.0,0.00011506,2]
[352209476,1738998661016,-500.0,0.00011506,2]
[352209477,1738998661026,-1481.07,0.00011506,2]
[352209478,1738998661036,-500.0,0.00011506,2]
[352209479,1738998661045,-151.0,0.00011506,2]
[352209480,1738998661055,-500.0,0.00011506,2]
[352209481,1738998661064,-500.0,0.00011506,2]
[352209482,1738998661074,-500.0,0.00011506,2]
[352209483,1738998661083,-671.1,0.00011506,2]
[352209484,1738998661093,-151.0,0.00011506,2]
[352209485,1738998661103,-500.0,0.00011506,2]
[352209486,1738998661112,-500.0,0.00011506,2]
[352209487,1738998661121,-500.0,0.00011506,2]
[352209488,1738998661131,-500.0,0.00011506,2]
[352209489,1738998661141,-521.83905828,0.00011506,2]
[352209490,1738998661150,-500.0,0.00011506,2]
[352209491,1738998661159,-3685.92,0.00011506,2]
[352209492,1738998661168,-500.0,0.00011506,2]
[352209493,1738998661179,-836.94,0.00011506,2]
[352209494,1738998661188,-500.0,0.00011506,2]
[352209495,1738998661198,-500.0,0.00011506,2]
[352209496,1738998661207,-711.76,0.00011506,2]
[352209497,1738998661216,-500.0,0.00011506,2]
[352209498,1738998661226,-500.0,0.00011506,2]
[352209499,1738998661235,-500.0,0.00011506,2]
[352209500,1738998661245,-500.0,0.00011506,2]
[352209501,1738998661254,-1198.7,0.00011506,2]
[352209502,1738998661263,-355.503338,0.00011506,2]
[352209503,1738998661273,-151.0,0.00011506,2]
[352209504,1738998661283,-355.503338,0.00011506,2]
[352209505,1738998661292,-500.0,0.00011506,2]
[352209506,1738998661302,-500.0,0.00011506,2]
[352209507,1738998661312,-500.0,0.00011506,2]
[352209508,1738998661322,-763.76,0.00011506,2]
[352209509,1738998661332,-500.0,0.00011506,2]
[352209510,1738998661343,-500.0,0.00011506,2]
[352209511,1738998661354,-988.05,0.00011506,2]
[352209512,1738998661364,-500.0,0.00011506,2]
[352209513,1738998661375,-500.0,0.00011506,2]
[352209514,1738998661384,-500.0,0.00011506,2]
[352209515,1738998661399,-500.0,0.00011506,2]
[352209516,1738998661415,-500.0,0.00011506,2]
[352209517,1738998661424,-156.851416,0.00011506,2]
[352209518,1738998661434,-1433.84,0.00011506,2]
[352209519,1738998661445,-500.0,0.00011506,2]
[352209520,1738998661454,-697.39396707,0.00011506,2]
[352209521,1738998661896,-946.30603293,0.00011506,2]
[352209522,1738998661907,-500.0,0.00011506,2]
[352209523,1738998661916,-500.0,0.00011506,2]
[352209524,1738998661926,-3044.6,0.00011506,2]
[352209525,1738998661940,-500.0,0.00011506,2]
[352209526,1738998661950,-151.0,0.00011506,2]
[352209527,1738998661961,-500.0,0.00011506,2]
[352209528,1738998661971,-500.0,0.00011506,2]
[352209529,1738998661981,-500.0,0.00011506,2]
[352209530,1738998661991,-500.0,0.00011506,2]
[352209531,1738998662000,-765.74,0.00011506,2]
[352209532,1738998662010,-151.0,0.00011506,2]
[352209533,1738998662020,-500.0,0.00011506,2]
[352209534,1738998662030,-500.0,0.00011506,2]
[352209535,1738998662039,-500.0,0.00011506,2]
[352209536,1738998662049,-500.0,0.00011506,2]
[352209537,1738998662059,-500.0,0.00011506,2]
[352209538,1738998662071,-500.0,0.00011506,2]
[352209539,1738998662081,-715.96,0.00011506,2]
[352209540,1738998662090,-500.0,0.00011506,2]
[352209541,1738998662100,-2515.96,0.00011506,2]
[352209542,1738998662110,-719.68,0.00011506,2]
[352209543,1738998662120,-500.0,0.00011506,2]
[352209544,1738998662130,-500.0,0.00011506,2]
[352209545,1738998662142,-9981.38,0.00011506,2]
[352209546,1738998662151,-500.0,0.00011506,2]
[352209547,1738998662160,-500.0,0.00011506,2]
[352209548,1738998662170,-500.0,0.00011506,2]
[352209549,1738998662182,-1315.18,0.00011506,2]
[352209550,1738998662192,-500.0,0.00011506,2]
[352209551,1738998662202,-1179.31,0.00011506,2]
[352209552,1738998662211,-660.77,0.00011506,2]
[352209553,1738998662222,-2961.48,0.00011506,2]
[352209554,1738998662231,-500.0,0.00011506,2]
[352209555,1738998662240,-500.0,0.00011506,2]
[352209556,1738998662250,-500.0,0.00011506,2]
[352209557,1738998662259,-500.0,0.00011506,2]
[352209558,1738998662269,-1189.1,0.00011506,2]
[352209559,1738998662278,-2548.81,0.00011506,2]
[352209560,1738998662290,-500.0,0.00011506,2]
[352209561,1738998662300,-48466.56,0.00011506,2]
[352209562,1738998662309,-3739.97,0.00011506,2]
[352209563,1738998662318,-500.0,0.00011506,2]
[352209564,1738998662328,-500.0,0.00011506,2]
[352209565,1738998662337,-151.0,0.00011506,2]
[352209566,1738998662346,-631.77,0.00011506,2]
[352209567,1738998662355,-500.0,0.00011506,2]
[352209568,1738998662366,-1998.71,0.00011506,2]
[352209569,1738998662376,-500.0,0.00011506,2]
[352209570,1738998662388,-500.0,0.00011506,2]
[352209571,1738998662397,-500.0,0.00011506,2]
[352209572,1738998662407,-500.0,0.00011506,2]
[352209573,1738998662416,-500.0,0.00011506,2]
[352209574,1738998662426,-500.0,0.00011506,2]
[352209575,1738998662437,-1597.12,0.00011506,2]
[352209576,1738998662446,-1175.25,0.00011506,2]
[352209577,1738998662456,-500.0,0.00011506,2]
[352209578,1738998662465,-500.0,0.00011506,2]
[352209579,1738998662474,-500.0,0.00011506,2]
[352209580,1738998662483,-14657.02,0.00011506,2]
[352209581,1738998662492,-500.0,0.00011506,2]
[352209582,1738998662501,-500.0,0.00011506,2]
[352209583,1738998662511,-500.0,0.00011506,2]
[352209584,1738998662520,-3257.55,0.00011506,2]
[352209585,1738998662529,-500.0,0.00011506,2]
[352209586,1738998662539,-500.0,0.00011506,2]
[352209587,1738998662551,-500.0,0.00011506,2]
[352209588,1738998662560,-500.0,0.00011506,2]
[352209589,1738998662569,-500.0,0.00011506,2]
[352209590,1738998662579,-500.0,0.00011506,2]
[352209591,1738998662589,-307.28908995,0.00011506,2]
[352209592,1738998662599,-500.0,0.00011506,2]
[352209593,1738998662608,-500.0,0.00011506,2]
[352209594,1738998662617,-500.0,0.00011506,2]
[352209595,1738998662629,-500.0,0.00011506,2]
[352209596,1738998662638,-1592.16,0.00011506,2]
[352209597,1738998662648,-2064.54,0.00011506,2]
[352209598,1738998662657,-456.49618601,0.00011506,2]
[352209599,1738998662667,-981.26,0.00011506,2]
[352209600,1738998662676,-796.91,0.00011506,2]
[352209601,1738998662688,-443.759213,0.00011506,2]
[352209602,1738998662698,-1457.93,0.00011506,2]
[352209603,1738998662707,-500.0,0.00011506,2]
[352209604,1738998662717,-560.31942373,0.00011506,2]
[352209605,1738998662726,-443.759213,0.00011506,2]
[352209606,1738998662735,-500.0,0.00011506,2]
[352209607,1738998662744,-500.0,0.00011506,2]
[352209608,1738998662754,-500.0,0.00011506,2]
[352209609,1738998662763,-500.0,0.00011506,2]
[352209610,1738998662772,-500.0,0.00011506,2]
[352209611,1738998662781,-180.346694,0.00011506,2]
[352209612,1738998662790,-500.0,0.00011506,2]
[352209613,1738998662800,-2789.96,0.00011506,2]
[352209614,1738998662809,-500.0,0.00011506,2]
[352209615,1738998662818,-180.346694,0.00011506,2]
[352209616,1738998662827,-6219.57,0.00011506,2]
[352209617,1738998662836,-803.77,0.00011506,2]
[352209618,1738998662845,-500.0,0.00011506,2]
[352209619,1738998662854,-500.0,0.00011506,2]
[352209620,1738998662863,-500.0,0.00011506,2]
[352209621,1738998662872,-500.0,0.00011506,2]
[352209622,1738998662881,-532.3232009,0.00011506,2]
[352209623,1738998662891,-1091.39,0.00011506,2]
[352209624,1738998662900,-1121.44,0.00011506,2]
[352209625,1738998662909,-500.0,0.00011506,2]
[352209626,1738998662919,-500.0,0.00011506,2]
[352209627,1738998662929,-500.0,0.00011506,2]
[352209628,1738998662938,-500.0,0.00011506,2]
[352209629,1738998662948,-1606.0,0.00011506,2]
[352209630,1738998662957,-2838.41,0.00011506,2]
[352209631,1738998662966,-695.43,0.00011506,2]
[352209632,1738998662975,-500.0,0.00011506,2]
[352209633,1738998662984,-3904.75,0.00011506,2]
[352209634,1738998662993,-500.0,0.00011506,2]
[352209635,1738998663002,-500.0,0.00011506,2]
[352209636,1738998663011,-1543.63,0.00011506,2]
[352209637,1738998663021,-500.0,0.00011506,2]
[352209638,1738998663031,-500.0,0.00011506,2]
[352209639,1738998663040,-1147.48,0.00011506,2]
[352209640,1738998663050,-679.14,0.00011506,2]
[352209641,1738998663060,-500.0,0.00011506,2]
[352209642,1738998663070,-500.0,0.00011506,2]
[352209643,1738998663079,-823.63,0.00011506,2]
[352209644,1738998663089,-500.0,0.00011506,2]
[352209645,1738998663099,-500.0,0.00011506,2]
[352209646,1738998663109,-500.0,0.00011506,2]
[352209647,1738998663119,-500.0,0.00011506,2]
[352209648,1738998663129,-500.0,0.00011506,2]
[352209649,1738998663138,-519.12,0.00011506,2]
[352209650,1738998663148,-500.0,0.00011506,2]
[352209651,1738998663157,-500.0,0.00011506,2]
[352209652,1738998663167,-1168.36,0.00011506,2]
[352209653,1738998663176,-263.1710528,0.00011507,2]
[352209654,1738998663186,-155.5163702,0.00011507,2]
[352209655,1738998663196,-500.35813474,0.00011521,2]
[352209656,1738998663205,-500.0,0.00011521,2]
[352209657,1738998663215,-321.50910176,0.00011521,2]
[352209658,1738998663225,-1000.0,0.00011521,2]
[352209659,1738998663234,-278.00370003,0.00011521,2]
[352209660,1738998663243,-533.81571692,0.00011521,2]
[352209661,1738998663253,-501.62037964,0.00011521,2]
[352209662,1738998663263,-1000.0,0.00011521,2]
[352209663,1738998663272,-701.237282,0.00011521,2]
[352209664,1738998663281,-336.0997551,0.00011526,2]
[352209665,1738998663291,-151.0,0.00011543,2]
[352209666,1738998663300,-318.736898,0.00011543,2]
[352209667,1738998663310,-318.736898,0.00011543,2]
[352209668,1738998663320,-151.0,0.00011543,2]
[352209669,1738998663329,-151.0,0.00011543,2]
[352209670,1738998663339,-355.503338,0.00011543,2]
[352209671,1738998663348,-355.503338,0.00011543,2]
[352209672,1738998663358,-151.0,0.00011543,2]
[352209673,1738998663367,-151.0,0.00011543,2]
[352209674,1738998663377,-151.0,0.000116,2]
[352209675,1738998663387,-151.0,0.00011643,2]
[352209676,1738998663396,-151.0,0.00011643,2]
[352209677,1738998663406,-151.0,0.00011643,2]
[352209678,1738998663416,-151.0,0.00011643,2]
[352209679,1738998663425,-151.0,0.00011643,2]
[352209680,1738998663436,-500.0,0.00011643,2]
[352209681,1738998663446,-500.0,0.00011643,2]
[352209682,1738998663455,-500.0,0.00011643,2]
[352209683,1738998663465,-500.0,0.00011643,2]
[352209684,1738998663475,-578.4468197,0.00011643,2]
[352209685,1738998663606,-189.63292773,0.00011643,2]
[352209686,1738998663618,-500.0,0.00011643,2]
[352209687,1738998663628,-500.0,0.00011643,2]
[352209688,1738998663639,-545.88,0.00011643,2]
[352209689,1738998663651,-500.0,0.00011643,2]
[352209690,1738998663661,-500.0,0.00011643,2]
[352209691,1738998663672,-500.0,0.00011643,2]
[352209692,1738998663686,-500.0,0.00011643,2]
[352209693,1738998663695,-531.13447835,0.00011643,2]
[352209694,1738998663706,-500.0,0.00011643,2]
[352209695,1738998663716,-500.0,0.00011643,2]
[352209696,1738998663726,-500.0,0.00011643,2]
[352209697,1738998663737,-500.0,0.00011643,2]
[352209698,1738998663747,-151.0,0.00011643,2]
[352209699,1738998663757,-500.0,0.00011643,2]
[352209700,1738998663767,-500.0,0.00011643,2]
[352209701,1738998663777,-500.0,0.00011643,2]
[352209702,1738998663787,-500.0,0.00011643,2]
[352209703,1738998663797,-500.0,0.00011643,2]
[352209704,1738998663807,-500.0,0.00011643,2]
[352209705,1738998663818,-500.0,0.00011643,2]
[352209706,1738998663828,-500.0,0.00011643,2]
[352209707,1738998663838,-507.73813683,0.00011643,2]
[352209708,1738998663848,-701.06,0.00011643,2]
[352209709,1738998663858,-258.179318,0.00011643,2]
[352209710,1738998663869,-565.21,0.00011643,2]
[352209711,1738998663879,-258.179318,0.00011643,2]
[352209712,1738998663889,-588.54,0.00011643,2]
[352209713,1738998663899,-500.0,0.00011643,2]
[352209714,1738998663910,-500.0,0.00011643,2]
[352209715,1738998663920,-500.0,0.00011643,2]
[352209716,1738998663933,-500.0,0.00011643,2]
[352209717,1738998663944,-500.0,0.00011643,2]
[352209718,1738998663957,-500.0,0.00011643,2]
[352209719,1738998663967,-500.0,0.00011643,2]
[352209720,1738998663978,-500.0,0.00011643,2]
[352209721,1738998663988,-500.0,0.00011643,2]
[352209722,1738998663998,-500.0,0.00011643,2]
[352209723,1738998664009,-500.0,0.00011643,2]
[352209724,1738998664019,-500.0,0.00011643,2]
[352209725,1738998664030,-500.0,0.00011643,2]
[352209726,1738998664040,-155.689156,0.00011643,2]
[352209727,1738998664051,-155.689156,0.00011643,2]
[352209728,1738998664062,-500.0,0.00011643,2]
[352209729,1738998664073,-500.0,0.00011643,2]
[352209730,1738998664083,-150.83616495,0.00011643,2]
[352209731,1738998664093,-296.3144312,0.00011643,2]
[352209732,1738998664104,-155.10823192,0.00011643,2]
[352209733,1738998664115,-500.0,0.00011643,2]
[352209734,1738998664125,-500.0,0.00011643,2]
[352209735,1738998664135,-889.61,0.00011643,2]
[352209736,1738998664145,-319.55237574,0.00011643,2]
[352209737,1738998664155,-191.717064,0.00011643,2]
[352209738,1738998664165,-151.0,0.00011643,2]
[352209739,1738998664175,-226.657433,0.00011643,2]
[352209740,1738998664189,-191.717064,0.00011643,2]
[352209741,1738998664199,-151.0,0.00011643,2]
[352209742,1738998664209,-500.0,0.00011643,2]
[352209743,1738998664219,-500.0,0.00011643,2]
[352209744,1738998664229,-500.0,0.00011643,2]
[352209745,1738998664239,-216.220034,0.00011643,2]
[352209746,1738998664249,-989.96,0.00011643,2]
[352209747,1738998664259,-500.0,0.00011643,2]
[352209748,1738998664270,-216.220034,0.00011643,2]
[352209749,1738998664279,-500.0,0.00011643,2]
[352209750,1738998664289,-500.0,0.00011643,2]
[352209751,1738998664299,-258.35316501,0.00011643,2]
[352209752,1738998664310,-500.0,0.00011643,2]
[352209753,1738998664320,-500.0,0.00011643,2]
[352209754,1738998664330,-500.0,0.00011643,2]
[352209755,1738998664339,-500.0,0.00011643,2]
[352209756,1738998664349,-500.0,0.00011643,2]
[352209757,1738998664358,-650.2,0.00011643,2]
[352209758,1738998664368,-156.747483,0.00011643,2]
[352209759,1738998664377,-500.0,0.00011643,2]
[352209760,1738998664387,-500.0,0.00011643,2]
[352209761,1738998664397,-500.0,0.00011643,2]
[352209762,1738998664405,-596.97,0.00011643,2]
[352209763,1738998664415,-500.0,0.00011643,2]
[352209764,1738998664424,-786.31,0.00011643,2]
[352209765,1738998664435,-500.0,0.00011643,2]
[352209766,1738998664445,-500.0,0.00011643,2]
[352209767,1738998664454,-500.0,0.00011643,2]
[352209768,1738998664464,-500.0,0.00011643,2]
[352209769,1738998664473,-500.0,0.00011643,2]
[352209770,1738998664483,-500.0,0.00011643,2]
[352209771,1738998664493,-500.0,0.00011643,2]
[352209772,1738998664502,-500.0,0.00011643,2]
[352209773,1738998664512,-500.0,0.00011643,2]
[352209774,1738998664521,-500.0,0.00011643,2]
[352209775,1738998664531,-500.0,0.00011643,2]
[352209776,1738998664542,-500.0,0.00011643,2]
[352209777,1738998664557,-222.25817926,0.00011643,2]
[352209778,1738998664566,-500.0,0.00011643,2]
[352209779,1738998664575,-432.08392,0.00011643,2]
[352209780,1738998664586,-432.08392,0.00011643,2]
[352209781,1738998664595,-500.0,0.00011643,2]
[352209782,1738998664604,-1060.7,0.00011643,2]
[352209783,1738998664614,-500.0,0.00011643,2]
[352209784,1738998664630,-500.0,0.00011643,2]
[352209785,1738998664650,-500.0,0.00011643,2]
[352209786,1738998664665,-500.0,0.00011643,2]
[352209787,1738998664675,-500.0,0.00011643,2]
[352209788,1738998664688,-500.0,0.00011643,2]
[352209789,1738998664706,-500.0,0.00011643,2]
[352209790,1738998664721,-500.0,0.00011643,2]
[352209791,1738998664731,-500.0,0.00011643,2]
[352209792,1738998664741,-1453.12,0.00011643,2]
[352209793,1738998664751,-500.0,0.00011643,2]
[352209794,1738998664761,-500.0,0.00011643,2]
[352209795,1738998664771,-500.0,0.00011643,2]
[352209796,1738998664781,-1481.07,0.00011643,2]
[352209797,1738998664790,-501.34071971,0.00011643,2]
[352209798,1738998664799,-152.525797,0.00011643,2]
[352209799,1738998664808,-500.0,0.00011643,2]
[352209800,1738998664817,-500.0,0.00011643,2]
[352209801,1738998664826,-500.0,0.00011643,2]
[352209802,1738998664835,-671.1,0.00011643,2]
[352209803,1738998664844,-151.0,0.00011643,2]
[352209804,1738998664853,-500.0,0.00011643,2]
[352209805,1738998664862,-500.0,0.00011643,2]
[352209806,1738998664871,-500.0,0.00011643,2]
[352209807,1738998664880,-394.6836578,0.00011643,2]
[352209808,1738998664890,-3685.92,0.00011643,2]
[352209809,1738998664899,-500.0,0.00011643,2]
[352209810,1738998664908,-836.94,0.00011643,2]
[352209811,1738998664917,-521.61857812,0.00011643,2]
[352209812,1738998664927,-500.0,0.00011643,2]
[352209813,1738998664938,-711.76,0.00011643,2]
[352209814,1738998664947,-500.0,0.00011643,2]
[352209815,1738998664956,-500.0,0.00011643,2]
[352209816,1738998664966,-500.0,0.00011643,2]
[352209817,1738998664975,-500.0,0.00011643,2]
[352209818,1738998664985,-1198.7,0.00011643,2]
[352209819,1738998664995,-355.503338,0.00011643,2]
[352209820,1738998665006,-150.12,0.00011643,2]
[352209821,1738998665016,-151.0,0.00011643,2]
[352209822,1738998665026,-150.12,0.00011643,2]
[352209823,1738998665035,-500.0,0.00011643,2]
[352209824,1738998665045,-355.503338,0.00011643,2]
[352209825,1738998665054,-500.0,0.00011643,2]
[352209826,1738998665063,-500.0,0.00011643,2]
[352209827,1738998665072,-763.76,0.00011643,2]
[352209828,1738998665081,-500.0,0.00011643,2]
[352209829,1738998665090,-500.0,0.00011643,2]
[352209830,1738998665100,-988.05,0.00011643,2]
[352209831,1738998665109,-500.0,0.00011643,2]
[352209832,1738998665118,-500.0,0.00011643,2]
[352209833,1738998665128,-500.0,0.00011643,2]
[352209834,1738998665137,-500.0,0.00011643,2]
[352209835,1738998665147,-500.0,0.00011643,2]
[352209836,1738998665156,-1433.84,0.00011643,2]
[352209837,1738998665166,-500.0,0.00011643,2]
[352209838,1738998665175,-1643.7,0.00011643,2]
[352209839,1738998665185,-500.0,0.00011643,2]
[352209840,1738998665194,-3044.6,0.00011643,2]
[352209841,1738998665204,-500.0,0.00011643,2]
[352209842,1738998665214,-151.0,0.00011643,2]
[352209843,1738998665223,-500.0,0.00011643,2]
[352209844,1738998665232,-503.32907393,0.00011643,2]
[352209845,1738998665242,-500.0,0.00011643,2]
[352209846,1738998665252,-500.0,0.00011643,2]
[352209847,1738998665262,-765.74,0.00011643,2]
[352209848,1738998665271,-154.89476,0.00011643,2]
[352209849,1738998665281,-500.0,0.00011643,2]
[352209850,1738998665291,-500.0,0.00011643,2]
[352209851,1738998665301,-500.0,0.00011643,2]
[352209852,1738998665311,-500.0,0.00011643,2]
[352209853,1738998665320,-500.0,0.00011643,2]
[352209854,1738998665329,-500.0,0.00011643,2]
[352209855,1738998665339,-715.96,0.00011643,2]
[352209856,1738998665349,-500.0,0.00011643,2]
[352209857,1738998665359,-150.12,0.00011643,2]
[352209858,1738998665369,-2515.96,0.00011643,2]
[352209859,1738998665379,-719.68,0.00011643,2]
[352209860,1738998665389,-500.0,0.00011643,2]
[352209861,1738998665399,-750.0,0.00011643,2]
[352209862,1738998665410,-500.0,0.00011643,2]
[352209863,1738998665419,-9981.38,0.00011643,2]
[352209864,1738998665430,-329.2187618,0.00011643,2]
[352209865,1738998665439,-500.0,0.00011643,2]
[352209866,1738998665449,-150.12,0.00011643,2]
[352209867,1738998665458,-500.0,0.00011643,2]
[352209868,1738998665468,-1315.18,0.00011643,2]
[352209869,1738998665478,-150.12,0.00011643,2]
[352209870,1738998665487,-500.0,0.00011643,2]
[352209871,1738998665497,-500.0,0.00011643,2]
[352209872,1738998665507,-1179.31,0.00011643,2]
[352209873,1738998665516,-660.77,0.00011643,2]
[352209874,1738998665526,-150.12,0.00011643,2]
[352209875,1738998665637,-150.12,0.00011643,2]
[352209876,1738998665650,-150.12,0.00011643,2]
[352209877,1738998665660,-2961.48,0.00011643,2]
[352209878,1738998665670,-500.0,0.00011643,2]
[352209879,1738998665680,-500.0,0.00011643,2]
[352209880,1738998665689,-500.0,0.00011643,2]
[352209881,1738998665698,-500.0,0.00011643,2]
[352209882,1738998665715,-1189.1,0.00011643,2]
[352209883,1738998665725,-2548.81,0.00011643,2]
[352209884,1738998665735,-500.0,0.00011643,2]
[352209885,1738998665744,-48466.56,0.00011643,2]
[352209886,1738998665754,-3739.97,0.00011643,2]
[352209887,1738998665764,-500.0,0.00011643,2]
[352209888,1738998665774,-500.0,0.00011643,2]
[352209889,1738998665783,-631.77,0.00011643,2]
[352209890,1738998665792,-500.0,0.00011643,2]
[352209891,1738998665802,-1998.71,0.00011643,2]
[352209892,1738998665811,-500.0,0.00011643,2]
[352209893,1738998665820,-500.0,0.00011643,2]
[352209894,1738998665830,-500.0,0.00011643,2]
[352209895,1738998665839,-500.0,0.00011643,2]
[352209896,1738998665849,-500.0,0.00011643,2]
[352209897,1738998665859,-500.0,0.00011643,2]
[352209898,1738998665869,-1597.12,0.00011643,2]
[352209899,1738998665879,-1175.25,0.00011643,2]
[352209900,1738998665888,-500.0,0.00011643,2]
[352209901,1738998665898,-500.0,0.00011643,2]
[352209902,1738998665907,-14657.02,0.00011643,2]
[352209903,1738998665916,-500.0,0.00011643,2]
[352209904,1738998665926,-469.48687463,0.00011643,2]
[352209905,1738998665938,-3257.55,0.00011643,2]
[352209906,1738998665948,-532.33870114,0.00011643,2]
[352209907,1738998665958,-500.0,0.00011643,2]
[352209908,1738998665968,-500.0,0.00011643,2]
[352209909,1738998665978,-188.93042321,0.00011643,2]
[352209910,1738998665988,-500.0,0.00011643,2]
[352209911,1738998665997,-500.0,0.00011643,2]
[352209912,1738998666006,-500.0,0.00011643,2]
[352209913,1738998666016,-500.0,0.00011643,2]
[352209914,1738998666025,-500.0,0.00011643,2]
[352209915,1738998666035,-500.0,0.00011643,2]
[352209916,1738998666045,-1592.16,0.00011643,2]
[352209917,1738998666055,-2064.54,0.00011643,2]
[352209918,1738998666064,-981.26,0.00011643,2]
[352209919,1738998666074,-796.91,0.00011643,2]
[352209920,1738998666083,-443.759213,0.00011643,2]
[352209921,1738998666093,-1457.93,0.00011643,2]
[352209922,1738998666102,-500.0,0.00011643,2]
[352209923,1738998666111,-443.759213,0.00011643,2]
[352209924,1738998666120,-556.13545161,0.00011643,2]
[352209925,1738998666130,-500.0,0.00011643,2]
[352209926,1738998666140,-500.0,0.00011643,2]
[352209927,1738998666150,-500.0,0.00011643,2]
[352209928,1738998666160,-500.0,0.00011643,2]
[352209929,1738998666169,-180.346694,0.00011643,2]
[352209930,1738998666179,-500.0,0.00011643,2]
[352209931,1738998666188,-2789.96,0.00011643,2]
[352209932,1738998666198,-500.0,0.00011643,2]
[352209933,1738998666208,-6219.57,0.00011643,2]
[352209934,1738998666217,-180.346694,0.00011643,2]
[352209935,1738998666227,-803.77,0.00011643,2]
[352209936,1738998666236,-500.0,0.00011643,2]
[352209937,1738998666246,-500.0,0.00011643,2]
[352209938,1738998666256,-500.0,0.00011643,2]
[352209939,1738998666265,-500.0,0.00011643,2]
[352209940,1738998666275,-1091.39,0.00011643,2]
[352209941,1738998666286,-1121.44,0.00011643,2]
[352209942,1738998666295,-500.0,0.00011643,2]
[352209943,1738998666305,-500.0,0.00011643,2]
[352209944,1738998666314,-500.0,0.00011643,2]
[352209945,1738998666324,-500.0,0.00011643,2]
[352209946,1738998666333,-1606.0,0.00011643,2]
[352209947,1738998666343,-2838.41,0.00011643,2]
[352209948,1738998666352,-500.0,0.00011643,2]
[352209949,1738998666362,-695.43,0.00011643,2]
[352209950,1738998666372,-3904.75,0.00011643,2]
[352209951,1738998666383,-556.64317837,0.00011643,2]
[352209952,1738998666392,-500.0,0.00011643,2]